[Event "*** SCC Grand Prix: Titled Tuesday Blitz"]
[Site "Chess.com"]
[Date "2020.08.11"]
[Round "3"]
[White "Casablanca"]
[Black "RaunakSadhwani2005"]
[Result "0-1"]
[WhiteElo "2451"]
[BlackElo "2950"]
[TimeControl "180+1"]
[EndTime "10:31:27 PDT"]
[Termination "RaunakSadhwani2005 won by resignation"]

1. d4 {[%clk 0:03:00.9]} 1... Nf6 {[%clk 0:02:59.3]} 2. Bg5 {[%clk 0:03:00]}
2... d5 {[%clk 0:02:57.9]} 3. Nc3 {[%clk 0:02:54.3]} 3... c6 {[%clk 0:02:56.1]}
4. e3 {[%clk 0:02:53.7]} 4... Bf5 {[%clk 0:02:55.7]} 5. Nf3 {[%clk 0:02:53.9]}
5... Nbd7 {[%clk 0:02:55.5]} 6. Bd3 {[%clk 0:02:54.4]} 6... Bg6 {[%clk
0:02:55.6]} 7. O-O {[%clk 0:02:53.5]} 7... e6 {[%clk 0:02:56]} 8. e4 {[%clk
0:02:53.2]} 8... dxe4 {[%clk 0:02:44.5]} 9. Nxe4 {[%clk 0:02:52.4]} 9... Be7
{[%clk 0:02:43.2]} 10. Qe2 {[%clk 0:02:46.4]} 10... O-O {[%clk 0:02:38]} 11.
Rfe1 {[%clk 0:02:45.2]} 11... Qb6 {[%clk 0:02:34.8]} 12. c3 {[%clk 0:02:42.6]}
12... Rfe8 {[%clk 0:02:34]} 13. Nxf6+ {[%clk 0:02:37.7]} 13... Bxf6 {[%clk
0:02:33.8]} 14. Bxg6 {[%clk 0:02:33.6]} 14... hxg6 {[%clk 0:02:33.4]} 15. Bf4
{[%clk 0:02:31.1]} 15... c5 {[%clk 0:02:32.6]} 16. dxc5 {[%clk 0:02:28.1]} 16...
Nxc5 {[%clk 0:02:33.5]} 17. Rad1 {[%clk 0:02:28.5]} 17... Rad8 {[%clk
0:02:33.4]} 18. Be3 {[%clk 0:02:27.2]} 18... Qc7 {[%clk 0:02:31.7]} 19. Bxc5
{[%clk 0:02:26]} 19... Qxc5 {[%clk 0:02:32.6]} 20. Nd2 {[%clk 0:02:25.3]} 20...
Qa5 {[%clk 0:02:27.9]} 21. a3 {[%clk 0:02:24.8]} 21... Qb6 {[%clk 0:02:22.1]}
22. Ne4 {[%clk 0:02:23.8]} 22... Be7 {[%clk 0:02:22.3]} 23. g3 {[%clk
0:02:16.7]} 23... Qc6 {[%clk 0:02:20.2]} 24. Nd2 {[%clk 0:01:59.8]} 24... Rd5
{[%clk 0:02:03.9]} 25. Nf3 {[%clk 0:01:58.2]} 25... Red8 {[%clk 0:02:03.3]} 26.
Rxd5 {[%clk 0:01:57.5]} 26... Qxd5 {[%clk 0:02:03]} 27. Nd4 {[%clk 0:01:52.6]}
27... Bf6 {[%clk 0:02:00.6]} 28. Nc2 {[%clk 0:01:47.5]} 28... Bg5 {[%clk
0:01:38.5]} 29. Ne3 {[%clk 0:01:45]} 29... Bxe3 {[%clk 0:01:38.6]} 30. Qxe3
{[%clk 0:01:45.9]} 30... a6 {[%clk 0:01:38.8]} 31. Re2 {[%clk 0:01:44.4]} 31...
g5 {[%clk 0:01:34.2]} 32. h3 {[%clk 0:01:36.7]} 32... g6 {[%clk 0:01:20.1]} 33.
Qe4 {[%clk 0:01:29.5]} 33... Qd1+ {[%clk 0:01:14.1]} 34. Re1 {[%clk 0:01:21.5]}
34... Qd2 {[%clk 0:01:13.5]} 35. Re2 {[%clk 0:01:21.4]} 35... Qc1+ {[%clk
0:01:11.2]} 36. Kg2 {[%clk 0:01:20.6]} 36... Rd5 {[%clk 0:01:04.9]} 37. Qc2
{[%clk 0:01:17.7]} 37... Qa1 {[%clk 0:01:00.4]} 38. c4 {[%clk 0:01:15.4]} 38...
Rd1 {[%clk 0:01:00.2]} 39. Rd2 {[%clk 0:01:08.4]} 39... Rg1+ {[%clk 0:00:44.8]}
40. Kf3 {[%clk 0:01:08.3]} 40... Qf1 {[%clk 0:00:31.7]} 41. Qc3 {[%clk
0:00:35.2]} 41... Qg2+ {[%clk 0:00:28.8]} 42. Ke3 {[%clk 0:00:28]} 42... Re1+
{[%clk 0:00:21.6]} 43. Re2 {[%clk 0:00:28.2]} 43... Rd1 {[%clk 0:00:15.2]} 44.
Rd2 {[%clk 0:00:23.9]} 44... Re1+ {[%clk 0:00:15.5]} 45. Re2 {[%clk 0:00:24]}
45... Rxe2+ {[%clk 0:00:16]} 46. Kxe2 {[%clk 0:00:24]} 46... Qxh3 {[%clk
0:00:16.9]} 47. Qd4 {[%clk 0:00:18]} 47... Qf5 {[%clk 0:00:15.1]} 48. Qd8+
{[%clk 0:00:17.9]} 48... Kg7 {[%clk 0:00:15.4]} 49. Qc7 {[%clk 0:00:17.2]} 49...
Qc2+ {[%clk 0:00:14.6]} 50. Kf1 {[%clk 0:00:16.9]} 50... Qxb2 {[%clk 0:00:14.6]}
51. Kg2 {[%clk 0:00:14.4]} 51... b6 {[%clk 0:00:13]} 52. a4 {[%clk 0:00:11.4]}
52... a5 {[%clk 0:00:13.1]} 53. c5 {[%clk 0:00:10.5]} 53... bxc5 {[%clk
0:00:13.5]} 54. Qxc5 {[%clk 0:00:11]} 54... Qb4 {[%clk 0:00:13.8]} 55. Qe5+
{[%clk 0:00:11.1]} 55... Kg8 {[%clk 0:00:14.1]} 56. Qc7 {[%clk 0:00:09.5]} 56...
Qe4+ {[%clk 0:00:10.7]} 57. Kg1 {[%clk 0:00:07.9]} 57... Qd5 {[%clk 0:00:11]}
58. Qb8+ {[%clk 0:00:05.9]} 58... Kg7 {[%clk 0:00:11.1]} 59. Qb2+ {[%clk
0:00:05.9]} 59... e5 {[%clk 0:00:10.7]} 60. Qb8 {[%clk 0:00:05.5]} 60... g4
{[%clk 0:00:10.6]} 61. Qc7 {[%clk 0:00:04.9]} 61... e4 {[%clk 0:00:10.2]} 62.
Qc3+ {[%clk 0:00:04.6]} 62... f6 {[%clk 0:00:09.2]} 63. Qc7+ {[%clk 0:00:04.9]}
63... Kh6 {[%clk 0:00:09.7]} 64. Qf4+ {[%clk 0:00:05.4]} 64... Kg7 {[%clk
0:00:09.1]} 65. Qc7+ {[%clk 0:00:05.8]} 65... Kh6 {[%clk 0:00:09.5]} 66. Qf4+
{[%clk 0:00:06.2]} 66... Qg5 {[%clk 0:00:09.4]} 67. Qb8 {[%clk 0:00:05.5]} 67...
Qe5 {[%clk 0:00:08.5]} 68. Qh8+ {[%clk 0:00:04.4]} 68... Kg5 {[%clk 0:00:09.1]}
69. Qh4+ {[%clk 0:00:03.8]} 69... Kf5 {[%clk 0:00:09.7]} 70. Qh7 {[%clk
0:00:04.4]} 70... e3 {[%clk 0:00:09.3]} 71. Qd7+ {[%clk 0:00:04.3]} 71... Kg5
{[%clk 0:00:09.8]} 72. fxe3 {[%clk 0:00:03.6]} 72... Qxe3+ {[%clk 0:00:10.6]}
73. Kg2 {[%clk 0:00:03.6]} 73... Qf3+ {[%clk 0:00:10.9]} 74. Kh2 {[%clk
0:00:04]} 74... Qf2+ {[%clk 0:00:11.2]} 75. Kh1 {[%clk 0:00:04.6]} 75... Qf1+
{[%clk 0:00:11.6]} 76. Kh2 {[%clk 0:00:04.5]} 76... Qh3+ {[%clk 0:00:12.5]} 77.
Kg1 {[%clk 0:00:04.9]} 77... Qxg3+ {[%clk 0:00:13.4]} 78. Kf1 {[%clk 0:00:05.6]}
78... Qf3+ {[%clk 0:00:13.7]} 79. Kg1 {[%clk 0:00:06.3]} 79... Qe3+ {[%clk
0:00:13.6]} 80. Kg2 {[%clk 0:00:06.2]} 80... Qe4+ {[%clk 0:00:13.5]} 81. Kg1
{[%clk 0:00:06.3]} 81... g3 {[%clk 0:00:12.5]} 82. Qb5+ {[%clk 0:00:05.3]} 82...
Kh4 {[%clk 0:00:11.6]} 83. Qd7 {[%clk 0:00:01.3]} 83... Qe3+ {[%clk 0:00:11.5]}
84. Kg2 {[%clk 0:00:01.9]} 84... Qf2+ {[%clk 0:00:11.5]} 0-1

[Event "*** SCC Grand Prix: Titled Tuesday Blitz"]
[Site "Chess.com"]
[Date "2020.08.11"]
[Round "3"]
[White "wonderfultime"]
[Black "Volodar_Murzin"]
[Result "1-0"]
[WhiteElo "2976"]
[BlackElo "2688"]
[TimeControl "180+1"]
[EndTime "10:31:36 PDT"]
[Termination "wonderfultime won by resignation"]

1. d4 {[%clk 0:03:00.9]} 1... d5 {[%clk 0:02:59.9]} 2. Nf3 {[%clk 0:03:01.3]}
2... c6 {[%clk 0:03:00]} 3. Bf4 {[%clk 0:03:01.8]} 3... Nf6 {[%clk 0:03:00]} 4.
e3 {[%clk 0:03:02.3]} 4... Bg4 {[%clk 0:02:58.4]} 5. c4 {[%clk 0:03:01.5]} 5...
e6 {[%clk 0:02:56.8]} 6. Qb3 {[%clk 0:03:01.8]} 6... Qb6 {[%clk 0:02:55.9]} 7.
Nc3 {[%clk 0:03:02.1]} 7... Nbd7 {[%clk 0:02:53.2]} 8. h3 {[%clk 0:03:01.9]}
8... Bxf3 {[%clk 0:02:51.4]} 9. gxf3 {[%clk 0:03:01.6]} 9... Be7 {[%clk
0:02:45.3]} 10. c5 {[%clk 0:02:54.9]} 10... Qxb3 {[%clk 0:02:44.4]} 11. axb3
{[%clk 0:02:55.8]} 11... Nh5 {[%clk 0:02:44]} 12. Bh2 {[%clk 0:02:55.6]} 12...
a6 {[%clk 0:02:44.1]} 13. b4 {[%clk 0:02:55.5]} 13... Rc8 {[%clk 0:02:41]} 14.
f4 {[%clk 0:02:55.4]} 14... g6 {[%clk 0:02:38.6]} 15. Be2 {[%clk 0:02:47]} 15...
Ng7 {[%clk 0:02:37.5]} 16. Kd2 {[%clk 0:02:32.1]} 16... Nf5 {[%clk 0:02:37]} 17.
Bd3 {[%clk 0:02:30.9]} 17... Bh4 {[%clk 0:02:28.7]} 18. Rhf1 {[%clk 0:02:23.4]}
18... Ke7 {[%clk 0:02:28.1]} 19. Ne2 {[%clk 0:02:22.5]} 19... Bf6 {[%clk
0:02:22]} 20. Nc1 {[%clk 0:02:16.8]} 20... Rb8 {[%clk 0:01:58.5]} 21. Nb3 {[%clk
0:02:14.6]} 21... Rhc8 {[%clk 0:01:52]} 22. f3 {[%clk 0:02:09.2]} 22... Bg7
{[%clk 0:01:47]} 23. Bc2 {[%clk 0:01:58.4]} 23... Rd8 {[%clk 0:01:33.4]} 24. Bg1
{[%clk 0:01:50.5]} 24... Bh6 {[%clk 0:01:25.3]} 25. Bf2 {[%clk 0:01:50]} 25...
Kf8 {[%clk 0:01:23.3]} 26. Ke2 {[%clk 0:01:50]} 26... Ne7 {[%clk 0:01:17.8]} 27.
Bg3 {[%clk 0:01:45.3]} 27... Nf5 {[%clk 0:01:17.4]} 28. Bh2 {[%clk 0:01:45.1]}
28... Bg7 {[%clk 0:01:16.4]} 29. Rfd1 {[%clk 0:01:40.8]} 29... Ne7 {[%clk
0:00:52]} 30. e4 {[%clk 0:01:35.2]} 30... f5 {[%clk 0:00:51.2]} 31. e5 {[%clk
0:01:19.6]} 31... Kf7 {[%clk 0:00:48.3]} 32. Bd3 {[%clk 0:01:18]} 32... Rdc8
{[%clk 0:00:40.8]} 33. h4 {[%clk 0:01:16.3]} 33... Rc7 {[%clk 0:00:39.4]} 34.
Rg1 {[%clk 0:00:57.7]} 34... h5 {[%clk 0:00:36.2]} 35. Bg3 {[%clk 0:00:58.1]}
35... Bh6 {[%clk 0:00:34.9]} 36. Ra2 {[%clk 0:00:57.4]} 36... Nf8 {[%clk
0:00:17.2]} 37. Ke3 {[%clk 0:00:57.3]} 37... Nd7 {[%clk 0:00:14.3]} 38. Rga1
{[%clk 0:00:56.7]} 38... Nf8 {[%clk 0:00:11.9]} 39. Be1 {[%clk 0:00:56.4]} 39...
Nd7 {[%clk 0:00:12.1]} 40. Na5 {[%clk 0:00:56.2]} 40... Kg7 {[%clk 0:00:10.7]}
41. Bc3 {[%clk 0:00:54]} 41... Kf7 {[%clk 0:00:10.7]} 42. Nxb7 {[%clk
0:00:46.9]} 42... Rcxb7 {[%clk 0:00:09.6]} 43. Rxa6 {[%clk 0:00:47.8]} 43...
Rxb4 {[%clk 0:00:08.5]} 44. Bxb4 {[%clk 0:00:44.2]} 44... Rxb4 {[%clk
0:00:09.4]} 45. Ra7 {[%clk 0:00:45.1]} 45... Nxe5 {[%clk 0:00:06.9]} 46. dxe5
{[%clk 0:00:40.1]} 46... Bxf4+ {[%clk 0:00:07.1]} 47. Kf2 {[%clk 0:00:39]} 47...
Rxb2+ {[%clk 0:00:07.4]} 48. Be2 {[%clk 0:00:39.1]} 48... Bxe5 {[%clk
0:00:07.1]} 49. R1a4 {[%clk 0:00:25]} 49... Rc2 {[%clk 0:00:06.8]} 50. f4 {[%clk
0:00:25.6]} 50... Bf6 {[%clk 0:00:06.6]} 51. R7a5 {[%clk 0:00:23.6]} 51... Bxh4+
{[%clk 0:00:06.7]} 52. Ke3 {[%clk 0:00:24.2]} 52... Be1 {[%clk 0:00:06.6]} 53.
Ra8 {[%clk 0:00:18.6]} 53... Rxc5 {[%clk 0:00:06.6]} 54. R4a7 {[%clk 0:00:16.4]}
54... Bh4 {[%clk 0:00:05.7]} 55. Rh8 {[%clk 0:00:09.1]} 55... d4+ {[%clk
0:00:03.8]} 56. Kd2 {[%clk 0:00:05.9]} 56... Bf6 {[%clk 0:00:01.4]} 57. Rh7+
{[%clk 0:00:06.4]} 57... Ke8 {[%clk 0:00:02.1]} 58. Bf3 {[%clk 0:00:05.6]} 58...
Rd5 {[%clk 0:00:02]} 59. Bxd5 {[%clk 0:00:05.8]} 59... cxd5 {[%clk 0:00:02.9]}
60. Kd3 {[%clk 0:00:06.1]} 60... Nc6 {[%clk 0:00:03.1]} 61. Ra8+ {[%clk
0:00:06.2]} 61... Bd8 {[%clk 0:00:03.6]} 62. Rc7 {[%clk 0:00:04.1]} 62... Ne7
{[%clk 0:00:03.5]} 63. Kxd4 {[%clk 0:00:04.2]} 63... h4 {[%clk 0:00:03.3]} 64.
Rc3 {[%clk 0:00:04.4]} 64... h3 {[%clk 0:00:03.3]} 65. Rxh3 {[%clk 0:00:04.3]}
65... Kd7 {[%clk 0:00:03.6]} 66. Ra7+ {[%clk 0:00:04.4]} 66... Kd6 {[%clk
0:00:03.4]} 67. Ra6+ {[%clk 0:00:04.4]} 67... Nc6+ {[%clk 0:00:03.9]} 68. Ke3
{[%clk 0:00:05]} 68... Kc5 {[%clk 0:00:03.5]} 69. Rh1 {[%clk 0:00:04.7]} 69...
Nb4 {[%clk 0:00:01.9]} 70. Rc1+ {[%clk 0:00:04]} 70... Kb5 {[%clk 0:00:02.1]}
71. Ra8 {[%clk 0:00:04.3]} 71... Bb6+ {[%clk 0:00:02.6]} 72. Ke2 {[%clk
0:00:04.9]} 72... d4 {[%clk 0:00:01.7]} 73. Re8 {[%clk 0:00:04.6]} 73... d3+
{[%clk 0:00:02]} 74. Kd2 {[%clk 0:00:05.1]} 74... Ba5 {[%clk 0:00:02.3]} 75. Rb1
{[%clk 0:00:05]} 75... Kc5 {[%clk 0:00:02.1]} 76. Rxe6 {[%clk 0:00:05.1]} 76...
Nd5+ {[%clk 0:00:02.6]} 77. Kc1 {[%clk 0:00:04.5]} 77... d2+ {[%clk 0:00:02.9]}
78. Kc2 {[%clk 0:00:05]} 78... Nxf4 {[%clk 0:00:03]} 79. Re5+ {[%clk 0:00:04.9]}
79... Kd4 {[%clk 0:00:03]} 80. Rxa5 {[%clk 0:00:05.2]} 1-0

[Event "*** SCC Grand Prix: Titled Tuesday Blitz"]
[Site "Chess.com"]
[Date "2020.08.11"]
[Round "3"]
[White "Virgo15"]
[Black "GM_dmitrij"]
[Result "0-1"]
[WhiteElo "2678"]
[BlackElo "2931"]
[TimeControl "180+1"]
[EndTime "10:31:36 PDT"]
[Termination "GM_dmitrij won on time"]

1. d4 {[%clk 0:03:00]} 1... d5 {[%clk 0:02:58.4]} 2. Nf3 {[%clk 0:02:59.6]} 2...
Nf6 {[%clk 0:02:57.9]} 3. Bf4 {[%clk 0:03:00.2]} 3... c5 {[%clk 0:02:56.3]} 4.
e3 {[%clk 0:03:00.5]} 4... Nc6 {[%clk 0:02:54.5]} 5. Nbd2 {[%clk 0:02:59.7]}
5... Bf5 {[%clk 0:02:53.8]} 6. c3 {[%clk 0:02:58.6]} 6... e6 {[%clk 0:02:51]} 7.
Qa4 {[%clk 0:02:55.4]} 7... cxd4 {[%clk 0:02:35.1]} 8. exd4 {[%clk 0:02:53.7]}
8... Bd6 {[%clk 0:02:34.8]} 9. Bg5 {[%clk 0:02:48.8]} 9... O-O {[%clk
0:02:32.5]} 10. Bb5 {[%clk 0:02:46.7]} 10... Rc8 {[%clk 0:02:14.1]} 11. O-O
{[%clk 0:02:43.3]} 11... a6 {[%clk 0:02:14.1]} 12. Be2 {[%clk 0:02:34.7]} 12...
h6 {[%clk 0:02:05.1]} 13. Bh4 {[%clk 0:02:33.4]} 13... Be7 {[%clk 0:01:48.8]}
14. Rfe1 {[%clk 0:02:28.7]} 14... Ne4 {[%clk 0:01:47.2]} 15. Bxe7 {[%clk
0:02:27.7]} 15... Qxe7 {[%clk 0:01:48.1]} 16. Nxe4 {[%clk 0:02:26]} 16... Bxe4
{[%clk 0:01:49]} 17. Qd1 {[%clk 0:02:21.1]} 17... b5 {[%clk 0:01:43.5]} 18. a4
{[%clk 0:02:19.1]} 18... Qb7 {[%clk 0:01:42.2]} 19. axb5 {[%clk 0:02:18.3]}
19... axb5 {[%clk 0:01:43.1]} 20. b4 {[%clk 0:02:14.4]} 20... Bxf3 {[%clk
0:01:42.6]} 21. Bxf3 {[%clk 0:02:12.4]} 21... Ne7 {[%clk 0:01:42.7]} 22. Qb3
{[%clk 0:01:50.9]} 22... Nf5 {[%clk 0:01:33.3]} 23. Ra5 {[%clk 0:01:48.4]} 23...
Nd6 {[%clk 0:01:24.5]} 24. Be2 {[%clk 0:01:40.8]} 24... Rc7 {[%clk 0:01:11.1]}
25. Rc1 {[%clk 0:01:09.1]} 25... Rfc8 {[%clk 0:01:11]} 26. Bd3 {[%clk
0:01:07.7]} 26... g6 {[%clk 0:01:04.9]} 27. g3 {[%clk 0:01:05]} 27... Kg7 {[%clk
0:01:05.3]} 28. Qb2 {[%clk 0:00:59.8]} 28... Rc6 {[%clk 0:01:01.8]} 29. h4
{[%clk 0:00:50.5]} 29... h5 {[%clk 0:01:01.5]} 30. Kg2 {[%clk 0:00:49.4]} 30...
Qc7 {[%clk 0:00:54.7]} 31. Ra3 {[%clk 0:00:46.3]} 31... Nc4 {[%clk 0:00:49.6]}
32. Bxc4 {[%clk 0:00:44.4]} 32... Rxc4 {[%clk 0:00:50.5]} 33. Ra5 {[%clk
0:00:35.5]} 33... Rxc3 {[%clk 0:00:49.2]} 34. Rxc3 {[%clk 0:00:35]} 34... Qxc3
{[%clk 0:00:50.1]} 35. Qxc3 {[%clk 0:00:32.8]} 35... Rxc3 {[%clk 0:00:51]} 36.
Rxb5 {[%clk 0:00:32.3]} 36... Rc4 {[%clk 0:00:51.9]} 37. Rb8 {[%clk 0:00:31]}
37... Rxd4 {[%clk 0:00:52.3]} 38. Kf3 {[%clk 0:00:30.4]} 38... Kf6 {[%clk
0:00:50.2]} 39. Ke3 {[%clk 0:00:30.3]} 39... Rc4 {[%clk 0:00:49.9]} 40. Kd3
{[%clk 0:00:30.2]} 40... Kf5 {[%clk 0:00:46.5]} 41. Rb7 {[%clk 0:00:29.6]} 41...
f6 {[%clk 0:00:46.2]} 42. Rb8 {[%clk 0:00:22.5]} 42... Ke5 {[%clk 0:00:40.2]}
43. b5 {[%clk 0:00:22.5]} 43... Kf5 {[%clk 0:00:29.5]} 44. b6 {[%clk 0:00:20.3]}
44... Rb4 {[%clk 0:00:29.7]} 45. f3 {[%clk 0:00:14.7]} 45... Rb3+ {[%clk
0:00:28.5]} 46. Ke2 {[%clk 0:00:14.6]} 46... e5 {[%clk 0:00:26.3]} 47. Kd2
{[%clk 0:00:08.9]} 47... e4 {[%clk 0:00:15.2]} 48. fxe4+ {[%clk 0:00:09.5]}
48... dxe4 {[%clk 0:00:16.1]} 49. b7 {[%clk 0:00:10]} 49... Rb6 {[%clk
0:00:10.3]} 50. Ke3 {[%clk 0:00:10.1]} 50... Rb3+ {[%clk 0:00:09.7]} 51. Kd4
{[%clk 0:00:09.9]} 51... e3 {[%clk 0:00:08.9]} 52. Kc4 {[%clk 0:00:07.7]} 52...
e2 {[%clk 0:00:07.3]} 53. Re8 {[%clk 0:00:03]} 53... Rxb7 {[%clk 0:00:08.2]} 54.
Rxe2 {[%clk 0:00:03.5]} 54... Kg4 {[%clk 0:00:09.1]} 55. Re6 {[%clk 0:00:03.7]}
55... Rf7 {[%clk 0:00:08.4]} 56. Re3 {[%clk 0:00:04.2]} 56... g5 {[%clk
0:00:08.3]} 57. hxg5 {[%clk 0:00:04.1]} 57... fxg5 {[%clk 0:00:09.2]} 58. Kd5
{[%clk 0:00:04.6]} 58... Rf3 {[%clk 0:00:09.6]} 59. Re4+ {[%clk 0:00:05.1]}
59... Kxg3 {[%clk 0:00:09.5]} 60. Ke5 {[%clk 0:00:05.6]} 60... h4 {[%clk
0:00:09.1]} 61. Re1 {[%clk 0:00:05.1]} 61... h3 {[%clk 0:00:08.3]} 62. Rg1+
{[%clk 0:00:05.6]} 62... Kh4 {[%clk 0:00:08.8]} 63. Ke4 {[%clk 0:00:05.7]} 63...
Rf4+ {[%clk 0:00:09.2]} 64. Ke3 {[%clk 0:00:05.8]} 64... h2 {[%clk 0:00:10.1]}
65. Ra1 {[%clk 0:00:05.8]} 65... Kh3 {[%clk 0:00:10.4]} 66. Rb1 {[%clk 0:00:04]}
66... Rf8 {[%clk 0:00:09.5]} 67. Ke4 {[%clk 0:00:03.9]} 67... g4 {[%clk
0:00:09.9]} 68. Ke3 {[%clk 0:00:02.9]} 68... g3 {[%clk 0:00:10.3]} 69. Rb7
{[%clk 0:00:01.8]} 69... h1=Q {[%clk 0:00:09.6]} 70. Rh7+ {[%clk 0:00:02.2]}
70... Kg2 {[%clk 0:00:10.5]} 71. Rxh1 {[%clk 0:00:02.7]} 71... Kxh1 {[%clk
0:00:11.4]} 0-1

[Event "*** SCC Grand Prix: Titled Tuesday Blitz"]
[Site "Chess.com"]
[Date "2020.08.11"]
[Round "3"]
[White "WPWPWP-2015"]
[Black "Koksik_13"]
[Result "0-1"]
[WhiteElo "2391"]
[BlackElo "2601"]
[TimeControl "180+1"]
[EndTime "10:31:40 PDT"]
[Termination "Koksik_13 won on time"]

1. e4 {[%clk 0:03:00.9]} 1... a6 {[%clk 0:02:57.2]} 2. d4 {[%clk 0:03:00]} 2...
e6 {[%clk 0:02:57.7]} 3. Nc3 {[%clk 0:02:58.6]} 3... b5 {[%clk 0:02:57.9]} 4.
Nf3 {[%clk 0:02:56.6]} 4... Bb7 {[%clk 0:02:58.5]} 5. Bd3 {[%clk 0:02:56.2]}
5... c5 {[%clk 0:02:59]} 6. dxc5 {[%clk 0:02:54.7]} 6... Bxc5 {[%clk 0:02:59.9]}
7. O-O {[%clk 0:02:52.9]} 7... Qc7 {[%clk 0:03:00.5]} 8. Qe2 {[%clk 0:02:45.6]}
8... Nc6 {[%clk 0:03:00.5]} 9. Be3 {[%clk 0:02:42.7]} 9... Bxe3 {[%clk
0:02:49.6]} 10. Qxe3 {[%clk 0:02:42.7]} 10... Nf6 {[%clk 0:02:46.6]} 11. Qg5
{[%clk 0:02:26.4]} 11... d6 {[%clk 0:02:25.4]} 12. Qxg7 {[%clk 0:02:15]} 12...
Ke7 {[%clk 0:02:25.1]} 13. Ng5 {[%clk 0:01:35.9]} 13... Raf8 {[%clk 0:02:00]}
14. Nxe6 {[%clk 0:01:35.1]} 14... Kxe6 {[%clk 0:01:44.5]} 15. Qxf6+ {[%clk
0:01:28]} 15... Kxf6 {[%clk 0:01:45.4]} 16. Nd5+ {[%clk 0:01:27.9]} 16... Kg7
{[%clk 0:01:41.5]} 17. Nxc7 {[%clk 0:01:27.4]} 17... Ne5 {[%clk 0:01:27]} 18. f4
{[%clk 0:00:54.7]} 18... Nxd3 {[%clk 0:01:26.7]} 19. cxd3 {[%clk 0:00:54.2]}
19... Rc8 {[%clk 0:01:27.6]} 20. Rac1 {[%clk 0:00:53.7]} 20... Kf6 {[%clk
0:01:12.5]} 21. Kf2 {[%clk 0:00:50.1]} 21... h5 {[%clk 0:01:09.7]} 22. Rc3
{[%clk 0:00:43.3]} 22... Ke7 {[%clk 0:01:06.7]} 23. Rfc1 {[%clk 0:00:40.6]}
23... Kd7 {[%clk 0:01:07]} 24. Nd5 {[%clk 0:00:38.1]} 24... Rxc3 {[%clk
0:01:06.9]} 25. Nxc3 {[%clk 0:00:37.2]} 25... Rg8 {[%clk 0:01:05.1]} 26. Ne2
{[%clk 0:00:30.4]} 26... h4 {[%clk 0:01:02.2]} 27. Nd4 {[%clk 0:00:27.5]} 27...
Rg6 {[%clk 0:00:54.6]} 28. Nf5 {[%clk 0:00:25.4]} 28... h3 {[%clk 0:00:48.8]}
29. gxh3 {[%clk 0:00:25.3]} 29... Rg8 {[%clk 0:00:48.2]} 30. Ne3 {[%clk
0:00:23.8]} 30... Rh8 {[%clk 0:00:47.8]} 31. Kg3 {[%clk 0:00:23.7]} 31... Rg8+
{[%clk 0:00:47.7]} 32. Ng4 {[%clk 0:00:23.9]} 32... d5 {[%clk 0:00:42.6]} 33.
Kf3 {[%clk 0:00:23.6]} 33... Rh8 {[%clk 0:00:38.5]} 34. Kg3 {[%clk 0:00:21.6]}
34... dxe4 {[%clk 0:00:37.9]} 35. dxe4 {[%clk 0:00:20.9]} 35... Rg8 {[%clk
0:00:34.4]} 36. e5 {[%clk 0:00:20]} 36... Bd5 {[%clk 0:00:33]} 37. a3 {[%clk
0:00:18.8]} 37... Bc4 {[%clk 0:00:31]} 38. Rd1+ {[%clk 0:00:17.8]} 38... Kc7
{[%clk 0:00:28.9]} 39. h4 {[%clk 0:00:17.5]} 39... a5 {[%clk 0:00:28.9]} 40. Rd6
{[%clk 0:00:15.4]} 40... Be6 {[%clk 0:00:19.2]} 41. Rxe6 {[%clk 0:00:14.1]}
41... fxe6 {[%clk 0:00:19.1]} 42. h5 {[%clk 0:00:14.5]} 42... Kd7 {[%clk
0:00:14.7]} 43. Kh4 {[%clk 0:00:14.3]} 43... Ke7 {[%clk 0:00:15.1]} 44. h6
{[%clk 0:00:14.5]} 44... Kf7 {[%clk 0:00:14.6]} 45. h7 {[%clk 0:00:14.7]} 45...
Rc8 {[%clk 0:00:12.1]} 46. Nf6 {[%clk 0:00:14]} 46... Kg7 {[%clk 0:00:12.3]} 47.
Kg5 {[%clk 0:00:12.9]} 47... Rc2 {[%clk 0:00:12.3]} 48. f5 {[%clk 0:00:04.7]}
48... Rg2+ {[%clk 0:00:11.9]} 49. Kf4 {[%clk 0:00:03.7]} 49... Rf2+ {[%clk
0:00:11.7]} 50. Ke4 {[%clk 0:00:04.1]} 50... Rxf5 {[%clk 0:00:10.4]} 51. b4
{[%clk 0:00:03.5]} 51... a4 {[%clk 0:00:10.1]} 52. Kd4 {[%clk 0:00:03.9]} 52...
Rf3 {[%clk 0:00:09.7]} 53. Kc5 {[%clk 0:00:03.8]} 53... Rxa3 {[%clk 0:00:09.8]}
54. Kxb5 {[%clk 0:00:04.2]} 54... Ra1 {[%clk 0:00:10.3]} 55. h4 {[%clk
0:00:03.2]} 55... a3 {[%clk 0:00:10.7]} 56. Ka4 {[%clk 0:00:03.5]} 56... a2
{[%clk 0:00:10.5]} 57. Ka3 {[%clk 0:00:03.8]} 57... Rb1 {[%clk 0:00:09.7]} 58.
Kxa2 {[%clk 0:00:04]} 58... Rxb4 {[%clk 0:00:10.4]} 59. h5 {[%clk 0:00:04.2]}
59... Rb5 {[%clk 0:00:08.2]} 60. h6+ {[%clk 0:00:04.1]} 60... Kh8 {[%clk
0:00:07.7]} 61. Ka3 {[%clk 0:00:02.7]} 61... Rxe5 {[%clk 0:00:07.6]} 62. Kb4
{[%clk 0:00:03.2]} 62... Rf5 {[%clk 0:00:07.8]} 63. Nd7 {[%clk 0:00:03.3]} 63...
Kxh7 {[%clk 0:00:08]} 64. Kc4 {[%clk 0:00:03.8]} 64... Kxh6 {[%clk 0:00:08.4]}
65. Nc5 {[%clk 0:00:03.6]} 65... Re5 {[%clk 0:00:06.5]} 66. Kd4 {[%clk 0:00:04]}
66... Re1 {[%clk 0:00:06.9]} 67. Nd3 {[%clk 0:00:03.4]} 67... Re2 {[%clk
0:00:06.4]} 68. Nc1 {[%clk 0:00:02.2]} 68... Rd2+ {[%clk 0:00:04.5]} 69. Ke5
{[%clk 0:00:02]} 69... Kg5 {[%clk 0:00:03.5]} 70. Kxe6 {[%clk 0:00:01.9]} 70...
Kf4 {[%clk 0:00:03.1]} 71. Nb3 {[%clk 0:00:02.1]} 71... Re2+ {[%clk 0:00:02.8]}
72. Kd5 {[%clk 0:00:01.7]} 72... Re8 {[%clk 0:00:03]} 73. Nc5 {[%clk 0:00:01.5]}
73... Rd8+ {[%clk 0:00:03.6]} 74. Kc6 {[%clk 0:00:01.6]} 74... Ke5 {[%clk
0:00:03.2]} 75. Nd7+ {[%clk 0:00:01.5]} 75... Kd4 {[%clk 0:00:03.5]} 0-1